fUSD/lending_fUSD_20240627
["ID","MTS","AMOUNT","RATE_DAILY","PERIOD"]
[330490916,1719499203045,300.0,0.00010998,2]
[330490917,1719499384492,-2367.8976,0.000118,2]
[330490918,1719499384517,-1641.30283098,0.0001251,2]
[330490919,1719499384539,-284.85570489,0.00013128,2]
[330490920,1719499384563,-155.38183905,0.00013128,2]
[330490921,1719499384586,-243.97166187,0.00013331,2]
[330490922,1719499384608,-2099.59036321,0.0001387,2]
[330490923,1719499403265,-309.729759,0.0001387,2]
[330490924,1719499403289,-300.0,0.00013899,2]
[330490925,1719499403311,-150.0,0.000139,2]
[330490926,1719499403334,-4522.2855,0.000139,2]
[330490927,1719499403361,-1717.984741,0.000139,2]
[330490928,1719499404040,-481.593759,0.000139,2]
[330490929,1719499404064,-193.16948895,0.0001399,2]
[330490930,1719499404089,-1152.31990522,0.00013999,5]
[330490931,1719499404112,-165.08264122,0.00013999,2]
[330490932,1719499404140,-5007.83420561,0.00014,2]
[330490933,1719499404958,-7000.0,0.00014,2]
[330490934,1719499415751,-7834.0,0.00014,2]
[330490935,1719499533845,6587.79690533,0.00025,60]
[330490960,1719499833245,-202.35692158,0.000139,2]
[330490963,1719499833260,-150.55446554,0.000139,2]
[330490964,1719499833271,-193.16948895,0.0001399,2]
[330490965,1719499833280,-160.99644058,0.00013998,2]
[330490970,1719499833293,-629.99914214,0.00013998,2]
[330490973,1719499833308,-495.10394686,0.00013998,2]
[330490976,1719499833318,-83778.65001366,0.00013999,2]
[330490978,1719499833330,-30873.0,0.00013999,2]
[330490979,1719499833342,-371.6925449,0.00013999,2]
[330490980,1719499833354,-11145.48513659,0.00013999,2]
[330490981,1719499833367,-4020.05519747,0.00013999,2]
[330490982,1719499833379,-876.11960137,0.00013999,2]
[330490983,1719499833392,-3111.40281369,0.00013999,2]
[330490984,1719499833404,-1213.93749004,0.00013999,2]
[330490985,1719499833416,-334.61,0.00013999,2]
[330490986,1719499833429,-300.0,0.00013999,2]
[330490987,1719499833440,-4667.47387818,0.00013999,2]
[330490988,1719499833453,-521.124372,0.00013999,2]
[330490989,1719499833794,-65.33219549,0.00013999,2]
[330490990,1719499834002,-74248.02445415,0.00013999,2]
[330490991,1719499834012,-550730.44579182,0.00014,2]
[330491035,1719499839396,-4470.90884912,0.00014,2]
[330491036,1719499839408,-4069.7644186,0.00014,2]
[330491037,1719499839420,-710.733,0.00014,2]
[330491038,1719499839432,-5641.70032621,0.00014,2]
[330491039,1719499839444,-18442.4078046,0.00014,2]
[330491040,1719499839455,-1275.15327242,0.00014,2]
[330491068,1719499839727,-31103.04666917,0.00014,2]
[330491070,1719499839739,-347.45730963,0.00014,2]
[330491072,1719499839751,-10287.06687749,0.00014,2]
[330491073,1719499839762,-410.85181468,0.00014,2]
[330491074,1719499839774,-250.39418971,0.00014,2]
[330491075,1719499839786,-1173.56700628,0.00014,2]
[330491076,1719499840191,-3358.8323994,0.00014,2]
[330491078,1719499840203,-280.08818164,0.00014,2]
[330491086,1719499840713,-7757.88693586,0.00014,2]
[330491088,1719499840725,-7260.00000008,0.00014,2]
[330491122,1719499843597,-0.28802411,0.00013999,2]
[330491123,1719499843609,-1723.95827173,0.00013999,2]
[330491124,1719499843619,-515757.2640731,0.00014,2]
[330491205,1719500872326,1052.180284,0.00010987,2]
[330491208,1719501033238,-300.0,0.00011097,2]
[330491209,1719501033249,-7.8334,0.00011098,2]
[330491211,1719501033269,-393.9,0.00011098,2]
[330491216,1719501033282,-291.34281324,0.00011098,2]
[330491219,1719501033296,-376.28217556,0.00011098,2]
[330491223,1719501033311,-595.5625,0.00011098,2]
[330491231,1719501033854,-1088.26645494,0.00011098,2]
[330491232,1719501033867,-1960.69157949,0.00011098,2]
[330491233,1719501033877,-6240.08686048,0.00011098,2]
[330491234,1719501033887,-3967.2200595,0.00011098,2]
[330491237,1719501033896,-5593.62205483,0.00011098,2]
[330491240,1719501033906,-15423.93998128,0.00011199,2]
[330491242,1719501033916,-10541.24799187,0.00011199,2]
[330491244,1719501033926,-420.0,0.00012193,2]
[330491247,1719501033936,-291.93341729,0.00013317,2]
[330491249,1719501033946,-587.0,0.00013398,2]
[330491250,1719501033956,-155.52012646,0.00013543,2]
[330491252,1719501033966,-3071.57439988,0.00013759,2]
[330491254,1719501033976,-192.52,0.00013775,2]
[330491257,1719501033986,-2375.40634291,0.00013849,2]
[330491259,1719501033997,-1000.0,0.000139,2]
[330491261,1719501034007,-1345.71,0.000139,2]
[330491262,1719501034018,-150.55446554,0.000139,2]
[330491263,1719501034028,-499.99,0.000139,2]
[330491264,1719501034039,-155.39292321,0.00013989,2]
[330491265,1719501034049,-1000.0,0.00013999,2]
[330491266,1719501034059,-778.02154041,0.00013999,5]
[330491267,1719501034069,-250.0,0.00014,2]
[330491268,1719501034079,-13296.67639753,0.00014,2]
[330491269,1719501038277,-498.87388707,0.00011199,2]
[330491272,1719501038289,-775.37331073,0.00011199,2]
[330491274,1719501038302,-22660.30035853,0.00011199,2]
[330491276,1719501038314,-225231.6070017,0.00014,2]
[330491278,1719501038323,-890.12337,0.00014,2]
[330491280,1719501038334,-7437.12370252,0.000145,2]
[330491282,1719501038343,-357.26,0.00014651,2]
[330491284,1719501038354,-823.0,0.00014721,2]
[330491285,1719501038364,-2373.57182662,0.00014849,2]
[330491287,1719501038374,-155.0,0.00014849,2]
[330491289,1719501038383,-179.53343583,0.000149,2]
[330491291,1719501038392,-36966.23017843,0.00015,2]
[330491293,1719501038402,-5000.0,0.00015,2]
[330491295,1719501038411,-3965.70350846,0.00015,2]
[330491297,1719501038420,-150.0,0.00015014,2]
[330491299,1719501038430,-150.55446554,0.00015024,2]
[330491301,1719501038440,-194.6188297,0.00015166,2]
[330491303,1719501038450,-1000.0,0.00015335,2]
[330491305,1719501038460,-1072.62009097,0.00015479,2]
[330491307,1719501038470,-1133.76952232,0.00015479,2]
[330491309,1719501038481,-955.73097325,0.00015535,2]
[330491311,1719501038491,-176.88202402,0.00015832,2]
[330491313,1719501038501,-155.0,0.00015832,2]
[330491314,1719501038511,-150.55446554,0.00016148,2]
[330491315,1719501038521,-1094.50291825,0.00016172,2]
[330491316,1719501038530,-155.1533886,0.00016172,2]
[330491317,1719501038540,-518.26142382,0.00016315,2]
[330491318,1719501038549,-1000.0,0.00016679,2]
[330491319,1719501038560,-250.0,0.0001669,2]
[330491320,1719501038570,-357.26,0.00016915,2]
[330491321,1719501038580,-537.93879391,0.00017159,2]
[330491322,1719501038594,-527.81158355,0.00017159,2]
[330491323,1719501038604,-196.12854204,0.00017159,2]
[330491324,1719501038614,-202.44445,0.00017199,2]
[330491325,1719501038624,-158.25040673,0.00017199,2]
[330491326,1719501038634,-155.0,0.00017199,2]
[330491327,1719501038645,-228.86840743,0.00017199,2]
[330491328,1719501038655,-155.0,0.00017199,2]
[330491329,1719501038665,-9790.13,0.00017242,2]
[330491330,1719501038675,-155.29100335,0.00017253,2]
[330491331,1719501038698,-164.4334539,0.00017253,2]
[330491332,1719501038709,-155.14682893,0.00017253,2]
[330491333,1719501038719,-202.05047868,0.00017253,2]
[330491334,1719501038731,-155.31772965,0.00017253,2]
[330491335,1719501038742,-251.69725193,0.00017253,2]
[330491336,1719501038754,-202.16186776,0.00017253,2]
[330491337,1719501038766,-290.97986156,0.00017253,2]
[330491338,1719501038777,-194.02066443,0.00017253,2]
[330491339,1719501038788,-346.03148912,0.00017253,2]
[330491340,1719501038798,-155.29307709,0.00017257,2]
[330491341,1719501038809,-155.0,0.00017257,2]
[330491342,1719501038819,-236.53352134,0.00017257,2]
[330491343,1719501038830,-155.0,0.00017257,2]
[330491344,1719501038852,-283.44364674,0.00017257,2]
[330491345,1719501038863,-218.40264018,0.00017257,2]
[330491346,1719501038874,-625.33216649,0.00017257,2]
[330491347,1719501038885,-305.26949333,0.00017257,2]
[330491348,1719501038895,-380.58928978,0.00017259,2]
[330491349,1719501038906,-189.67743953,0.00017259,2]
[330491350,1719501038917,-366.11090361,0.00017259,2]
[330491351,1719501038927,-269.9716691,0.00017259,2]
[330491352,1719501038937,-650.83910401,0.00017259,2]
[330491353,1719501038948,-155.14159365,0.00017259,2]
[330491354,1719501038958,-155.43236506,0.00017259,2]
[330491355,1719501038969,-150.55446554,0.00017271,2]
[330491356,1719501038979,-155.26295347,0.00017533,2]
[330491357,1719501038990,-199.16467092,0.00017533,2]
[330491358,1719501039002,-226.97665617,0.00017703,2]
[330491359,1719501039013,-226.97665617,0.00017703,2]
[330491360,1719501039023,-872.60064963,0.00017938,2]
[330491361,1719501039034,-165.77,0.00017985,2]
[330491362,1719501039044,-150.55446554,0.00018395,2]
[330491363,1719501039055,-305.43945511,0.00018735,2]
[330491364,1719501039065,-491.56025274,0.00018764,2]
[330491365,1719501039076,-1000.0,0.00018764,2]
[330491366,1719501039093,-500.0,0.00018835,2]
[330491367,1719501039105,-500.0,0.00018835,2]
[330491368,1719501039117,-500.0,0.00018835,2]
[330491369,1719501039128,-500.0,0.00018835,2]
[330491370,1719501039138,-500.0,0.00018835,2]
[330491371,1719501039148,-500.0,0.00018835,2]
[330491372,1719501039158,-500.0,0.00018835,2]
[330491373,1719501039168,-500.0,0.00018835,2]
[330491374,1719501039178,-500.0,0.00018835,2]
[330491375,1719501039188,-654.0,0.00018835,2]
[330491376,1719501039199,-1254.0,0.000189,4]
[330491377,1719501039209,-152.0,0.00018994,2]
[330491378,1719501039220,-150.0,0.00018994,2]
[330491379,1719501039230,-150.203,0.00018994,2]
[330491380,1719501039241,-150.197,0.00018994,2]
[330491381,1719501039252,-150.0,0.00018994,2]
[330491382,1719501039263,-259.115,0.00018994,2]
[330491383,1719501039276,-184.957,0.00018994,2]
[330491384,1719501039286,-150.0,0.00018994,2]
[330491385,1719501039295,-200.329,0.00018994,2]
[330491386,1719501039307,-206.254,0.00018994,2]
[330491387,1719501039317,-151.838,0.00018994,2]
[330491388,1719501039327,-448.0,0.00018994,2]
[330491389,1719501039342,-166.0,0.00018994,2]
[330491390,1719501039353,-445.0,0.00019,4]
[330491391,1719501039363,-485.55472686,0.00019,2]
[330491392,1719501039377,-404.56864314,0.00019,2]
[330491393,1719501039390,-250.0,0.00019178,2]
[330491394,1719501039400,-357.26,0.00019179,2]
[330491395,1719501039410,-339.46001548,0.00019352,2]
[330491396,1719501039421,-523.44090366,0.00019389,2]
[330491397,1719501039432,-150.55446554,0.00019519,2]
[330491398,1719501039442,-157.09861622,0.00019863,2]
[330491399,1719501039453,-1867.33350757,0.00019893,2]
[330491400,1719501039464,-212.29253139,0.00019989,2]
[330491401,1719501039475,-150.01362551,0.0002,2]
[330491402,1719501039485,-2017.10975651,0.000202,2]
[330491403,1719501039495,-182.0,0.000204,2]
[330491404,1719501039506,-150.55446554,0.00020643,2]
[330491405,1719501039516,-884.88433159,0.000208,3]
[330491406,1719501039530,-2594.64763549,0.000208,3]
[330491407,1719501039647,-242.99470657,0.00014999,2]
[330491408,1719501039658,-155.0,0.00016808,2]
[330491409,1719501039668,-256.54429343,0.000208,3]
[330491410,1719501039680,-6360.89999999,0.000208,3]
[330491411,1719501039692,-6195.0,0.000208,3]
[330491412,1719501039705,-345.0,0.000208,3]
[330491413,1719501039717,-3646.45277639,0.000208,3]
[330491414,1719501039729,-6701.11225904,0.000208,3]
[330491415,1719501039782,-46290.60374877,0.000208,3]
[330491416,1719501039791,-1000.0,0.00020849,2]
[330491417,1719501039801,-2818.27480941,0.00020882,3]
[330491418,1719501039811,-1867.33350757,0.00020892,2]
[330491419,1719501039821,-1250.0,0.00021,2]
[330491420,1719501039830,-981.0,0.000214,4]
[330491421,1719501039843,-200.0,0.000214,4]
[330491422,1719501039852,-319.6,0.000214,2]
[330491423,1719501039862,-357.26,0.00021443,2]
[330491424,1719501039871,-11273.0992376,0.0002149,3]
[330491425,1719501039882,-1500.0,0.000215,2]
[330491426,1719501039892,-1500.0,0.000215,2]
[330491427,1719501039902,-1500.0,0.000215,2]
[330491428,1719501039912,-1500.0,0.000215,2]
[330491429,1719501039922,-1500.0,0.000215,2]
[330491430,1719501039931,-1702.98,0.000215,2]
[330491431,1719501039941,-1500.0,0.000215,2]
[330491432,1719501039951,-1500.0,0.000215,2]
[330491433,1719501039960,-1500.0,0.000215,2]
[330491434,1719501039970,-1500.0,0.000215,2]
[330491435,1719501039980,-156.39,0.00021644,2]
[330491436,1719501039990,-156.51,0.00021644,2]
[330491437,1719501039999,-158.1,0.00021644,2]
[330491438,1719501040010,-176.19,0.00021644,2]
[330491439,1719501040019,-300.0,0.000217,7]
[330491440,1719501040029,-150.55446554,0.00021766,2]
[330491441,1719501040040,-5636.54961882,0.0002177,3]
[330491442,1719501040049,-2486.44021461,0.0002178,2]
[330491443,1719501040060,-7500.0,0.0002178,2]
[330491444,1719501040070,-183.4990456,0.0002178,2]
[330491445,1719501040079,-600.0,0.000218,7]
[330491446,1719501040091,-997.1,0.000218,2]
[330491447,1719501040101,-193.16948895,0.00021827,2]
[330491448,1719501040114,-150.5,0.0002185,30]
[330491449,1719501040124,-150.5,0.0002186,30]
[330491450,1719501040134,-151.24,0.0002187,30]
[330491451,1719501040144,-213.07,0.0002187,30]
[330491452,1719501040154,-151.67,0.0002187,30]
[330491453,1719501040164,-150.5,0.0002187,30]
[330491454,1719501040174,-9990.17415518,0.0002188,2]
[330491458,1719501040484,-1044.76716236,0.00016172,2]
[330491461,1719501040496,-218.00572535,0.00016172,2]
[330491463,1719501040506,-213.4977548,0.00017199,2]
[330491465,1719501040516,-168.69889868,0.00017257,2]
[330491467,1719501040526,-736.85762124,0.0002188,2]
[330491469,1719501040538,-1876.742,0.0002188,2]
[330491475,1719501040973,-320.473,0.00014499,2]
[330491476,1719501040984,-339.78176663,0.00014499,2]
[330491477,1719501040994,-226.97665617,0.00017599,2]
[330491478,1719501041004,-971.03373094,0.00021834,2]
[330491498,1719501044070,-37802.24640891,0.00021834,2]
[330491499,1719501044082,-25365.63210527,0.0002188,2]
[330491500,1719501044094,-49891.98207055,0.0002188,2]
[330491502,1719501044107,-4686.47944893,0.0002188,2]
[330491504,1719501044119,-743736.44907745,0.0002188,2]
[330491506,1719501044132,-695.38654256,0.0002188,2]
[330491508,1719501044144,-15734.20194805,0.0002188,2]
[330491511,1719501044155,-1270.64228968,0.0002188,2]
[330491513,1719501044167,-765.60021813,0.0002188,2]
[330491516,1719501044484,-391.07832614,0.0002188,2]
[330491517,1719501044495,-2989.84162048,0.0002188,2]
[330491518,1719501044507,-328.39001,0.0002188,2]
[330491522,1719501046555,-1240.24,0.0002188,2]
[330491523,1719501046577,-27661.5997542,0.0002188,2]
[330491525,1719501046594,-481.29460734,0.0002188,2]
[330491526,1719501046608,-783.12,0.0002188,2]
[330491527,1719501046620,-1959.75301746,0.0002188,2]
[330491528,1719501046634,-56532.94853423,0.0002188,2]
[330491529,1719501046647,-1459.8116197,0.0002188,2]
[330491531,1719501047057,-1062.60063748,0.0002188,2]
[330491532,1719501047070,-520.38152683,0.0002188,2]
[330491534,1719501048556,-30387.46643267,0.0002188,2]
[330491535,1719501170033,602.0,0.00025,60]
[330491540,1719501926088,-2373.57182662,0.00011098,2]
[330491601,1719502233445,-308.807424,0.00017259,2]
[330491602,1719502234588,-4691.192576,0.00017259,2]
[330491603,1719502234602,-3393.07595036,0.00017444,2]
[330491604,1719502234616,-240.47912849,0.00017444,2]
[330491605,1719502234626,-26.47382054,0.00017532,2]
[330491606,1719502234640,-273.52617946,0.00017532,2]
[330491607,1719502234650,-26.47382054,0.00017566,2]
[330491608,1719502234663,-2692.69077853,0.00017566,2]
[330491609,1719502234679,-1667.84234222,0.00017889,2]
[330491610,1719502234692,-593.55351269,0.00017889,2]
[330491611,1719502234705,-818.9165039,0.00017889,2]
[330491612,1719502234716,-6344.31821226,0.00017981,2]
[330491613,1719502234728,-6114.93238774,0.00017981,2]
[330491614,1719502234738,-304.83,0.00018623,2]
[330491615,1719502234752,-1020.02761226,0.00018717,2]
[330491616,1719502234766,-676.97238774,0.00018717,2]
[330491617,1719502234776,-1940.90822804,0.00018717,2]
[330491618,1719502234786,-650.83910401,0.00018739,2]
[330491619,1719502234796,-625.06783351,0.00018759,2]
[330491620,1719502234806,-499.99,0.00018899,2]
[330491621,1719502234816,-1548.0,0.000189,4]
[330491622,1719502234828,-226.97665617,0.00018919,2]
[330491623,1719502234838,-250.0,0.00019745,2]
[330491624,1719502234848,-250.0,0.00019761,2]
[330491625,1719502234858,-433.5373816,0.00019863,2]
[330491626,1719502234867,-1133.15205235,0.00019899,2]
[330491627,1719502234877,-250.0,0.00019921,2]
[330491628,1719502234888,-589.67,0.00020541,2]
[330491629,1719502234898,-151.0,0.00020607,2]
[330491630,1719502234908,-182.0,0.000208,3]
[330491631,1719502234918,-304.83,0.00020887,2]
[330491632,1719502234928,-151.0,0.00021202,2]
[330491633,1719502234939,-426.058813,0.000214,2]
[330491634,1719502234949,-1000.0,0.00021553,2]
[330491635,1719502234959,-485.66,0.00021644,2]
[330491636,1719502234969,-156.42,0.00021644,2]
[330491637,1719502234979,-593.41558,0.0002166,2]
[330491638,1719502234990,-340.02045187,0.00021775,2]
[330491639,1719502235000,-156.65031773,0.00021775,2]
[330491640,1719502235011,-316.56325385,0.00021779,2]
[330491641,1719502235022,-21797.0314,0.0002178,2]
[330491642,1719502235032,-171.25042834,0.0002178,2]
[330491643,1719502235042,-324.23258188,0.0002178,2]
[330491644,1719502235053,-151.0,0.00021798,2]
[330491645,1719502235063,-300.0,0.000218,7]
[330491646,1719502235075,-981.0,0.000218,4]
[330491647,1719502235086,-200.0,0.000218,4]
[330491648,1719502235096,-2421.30702461,0.000218,2]
[330491649,1719502235106,-1001.54,0.000218,2]
[330491650,1719502235116,-1001.54,0.000218,2]
[330491651,1719502235126,-156.5393225,0.00021855,2]
[330491652,1719502235136,-156.5393225,0.00021855,2]
[330491653,1719502235146,-156.5393225,0.00021855,2]
[330491654,1719502235156,-156.5393225,0.00021855,2]
[330491655,1719502235166,-156.5393225,0.00021855,2]
[330491656,1719502235176,-156.5393225,0.00021855,2]
[330491657,1719502235186,-156.5393225,0.00021855,2]
[330491658,1719502235196,-156.5393225,0.00021855,2]
[330491659,1719502235206,-156.5393225,0.00021855,2]
[330491660,1719502235216,-156.5393225,0.00021855,2]
[330491661,1719502235226,-156.5393225,0.00021855,2]
[330491662,1719502235235,-156.5393225,0.00021855,2]
[330491663,1719502235246,-156.5393225,0.00021855,2]
[330491664,1719502235256,-156.5393225,0.00021855,2]
[330491665,1719502235266,-156.5393225,0.00021855,2]
[330491666,1719502235276,-156.5393225,0.00021855,2]
[330491667,1719502235287,-156.5393225,0.00021855,2]
[330491668,1719502235297,-156.5393225,0.00021855,2]
[330491669,1719502235307,-156.5393225,0.00021855,2]
[330491670,1719502235318,-156.5393225,0.00021855,2]
[330491671,1719502235328,-156.5393225,0.00021855,2]
[330491672,1719502235338,-156.5393225,0.00021855,2]
[330491673,1719502235348,-156.5393225,0.00021855,2]
[330491674,1719502235357,-156.5393225,0.00021855,2]
[330491675,1719502235367,-156.5393225,0.00021855,2]
[330491676,1719502235377,-156.5393225,0.00021855,2]
[330491677,1719502235388,-156.5393225,0.00021855,2]
[330491678,1719502235399,-156.5393225,0.00021855,2]
[330491679,1719502235409,-156.5393225,0.00021855,2]
[330491680,1719502235419,-156.5393225,0.00021855,2]
[330491681,1719502235429,-156.5393225,0.00021855,2]
[330491682,1719502235440,-156.5393225,0.0002186,2]
[330491683,1719502235450,-156.5393225,0.0002186,2]
[330491684,1719502235460,-156.5393225,0.0002186,2]
[330491685,1719502235470,-156.5393225,0.0002186,2]
[330491686,1719502235479,-156.5393225,0.0002186,2]
[330491687,1719502235489,-156.5393225,0.0002186,2]
[330491688,1719502235498,-156.5393225,0.0002186,2]
[330491689,1719502235507,-156.5393225,0.0002186,2]
[330491690,1719502235517,-156.5393225,0.0002186,2]
[330491691,1719502235526,-156.5393225,0.0002186,2]
[330491692,1719502235536,-156.5393225,0.0002186,2]
[330491693,1719502235545,-156.5393225,0.0002186,2]
[330491694,1719502235555,-156.5393225,0.0002186,2]
[330491695,1719502235565,-156.5393225,0.0002186,2]
[330491696,1719502235575,-156.5393225,0.0002186,2]
[330491697,1719502235585,-156.5393225,0.0002186,2]
[330491698,1719502235595,-156.5393225,0.0002186,2]
[330491699,1719502235604,-156.5393225,0.0002186,2]
[330491700,1719502235614,-156.5393225,0.0002186,2]
[330491701,1719502235624,-156.5393225,0.0002186,2]
[330491702,1719502235634,-156.5393225,0.0002186,2]
[330491703,1719502235644,-156.5393225,0.0002186,2]
[330491704,1719502235654,-156.5393225,0.0002186,2]
[330491705,1719502235670,-156.5393225,0.0002186,2]
[330491706,1719502235680,-156.5393225,0.0002186,2]
[330491707,1719502235689,-156.5393225,0.0002186,2]
[330491708,1719502235699,-156.5393225,0.0002186,2]
[330491709,1719502235710,-156.5393225,0.0002186,2]
[330491710,1719502235719,-156.5393225,0.0002186,2]
[330491711,1719502235730,-156.5393225,0.0002186,2]
[330491712,1719502235740,-156.5393225,0.0002186,2]
[330491713,1719502235752,-156.5393225,0.0002186,2]
[330491714,1719502235762,-78456.1841831,0.00021865,3]
[330491715,1719502235772,-144842.186184,0.0002187,3]
[330491716,1719502235782,-2666.93818006,0.0002187,3]
[330491717,1719502235792,-486627.49594254,0.0002188,2]
[330491718,1719502235805,-2816.99074986,0.0002188,2]
[330491719,1719502235817,-4057.32454602,0.0002188,2]
[330491720,1719502235830,-269.0000005,0.0002188,2]
[330491721,1719502235843,-833.36001832,0.0002188,2]
[330491722,1719502235854,-537.12016184,0.0002188,2]
[330491723,1719502235866,-3066.10369521,0.0002188,2]
[330491724,1719502235877,-3188.38584379,0.0002188,2]
[330491725,1719502235889,-6205.2366671,0.0002188,2]
[330491726,1719502235898,-168.1576548,0.0002188,2]
[330491727,1719502235908,-3299.39911291,0.0002188,2]
[330491728,1719502235919,-3725.76864489,0.0002188,2]
[330491729,1719502235929,-8049.41190545,0.0002188,2]
[330491730,1719502235941,-11054.02150355,0.0002188,2]
[330491731,1719502235950,-248.73525222,0.0002188,2]
[330491732,1719502235959,-207.2793762,0.0002188,2]
[330491733,1719502235969,-3314.4874529,0.0002188,2]
[330491734,1719502235979,-39735.43506465,0.0002188,2]
[330491735,1719502235992,-141420.67053965,0.0002188,2]
[330491736,1719502236002,-1572.8149318,0.00021883,2]
[330491737,1719502236012,-1248.0939123,0.00021883,2]
[330491738,1719502236021,-866.90298966,0.00021893,2]
[330491739,1719502236031,-155.0,0.00021898,2]
[330491740,1719502236041,-340.0204518,0.00021899,2]
[330491741,1719502236052,-2421.30702453,0.00021899,2]
[330491742,1719502236061,-600.0,0.000219,7]
[330491743,1719502236071,-2234.85976065,0.000219,2]
[330491744,1719502236081,-182.0,0.000219,4]
[330491745,1719502236090,-24576.68660059,0.000219,2]
[330491746,1719502236100,-363.97610641,0.000219,2]
[330491747,1719502236110,-159.50287503,0.00021916,2]
[330491748,1719502236119,-989.96,0.00021918,2]
[330491749,1719502236130,-170.37,0.00021918,2]
[330491750,1719502236140,-150.0,0.00021918,2]
[330491751,1719502236149,-500.0,0.00021918,2]
[330491752,1719502236159,-150.0,0.00021989,2]
[330491753,1719502236169,-300.0,0.00021989,2]
[330491754,1719502236178,-450.0,0.00021989,2]
[330491755,1719502236188,-600.0,0.00021989,2]
[330491756,1719502236198,-750.0,0.00021989,2]
[330491757,1719502236208,-380.99116858,0.0002199,3]
[330491758,1719502236217,-150.0,0.00021994,2]
[330491759,1719502236228,-150.0,0.00021994,2]
[330491760,1719502236237,-156.65031769,0.00021998,2]
[330491761,1719502236247,-2421.30702453,0.00021998,2]
[330491762,1719502236257,-2000.0,0.00022,2]
[330491763,1719502236267,-500.37472423,0.00022,2]
[330491764,1719502236276,-64772.6,0.00022,5]
[330491765,1719502236286,-340.0204518,0.00022023,2]
[330491766,1719502236295,-2421.30702453,0.00022097,2]
[330491767,1719502236305,-1000.0,0.000221,8]
[330491768,1719502236315,-1483.49267899,0.00022142,2]
[330491769,1719502236326,-340.0204518,0.00022147,2]
[330491770,1719502236335,-2421.30702453,0.00022196,2]
[330491771,1719502236344,-1300.0,0.000222,8]
[330491772,1719502236354,-156.65031769,0.00022221,2]
[330491773,1719502236364,-340.0204518,0.00022271,2]
[330491774,1719502236374,-380.99116858,0.00022285,3]
[330491775,1719502236383,-2421.30702453,0.00022295,2]
[330491776,1719502236393,-1000.0,0.000223,2]
[330491777,1719502236403,-1600.0,0.000223,8]
[330491778,1719502236412,-151.0,0.00022393,2]
[330491779,1719502236422,-340.0204518,0.00022394,2]
[330491780,1719502236431,-2421.30702453,0.00022395,2]
[330491781,1719502236441,-1000.0,0.000224,2]
[330491782,1719502236451,-300.0,0.000224,8]
[330491783,1719502236460,-156.65031769,0.00022444,2]
[330491784,1719502236470,-2421.30702453,0.00022494,2]
[330491785,1719502236480,-300.0,0.000225,8]
[330491786,1719502236490,-340.0204518,0.00022518,2]
[330491787,1719502236499,-510.0,0.00022519,2]
[330491788,1719502236510,-150.0,0.00022555,2]
[330491789,1719502236519,-150.0,0.00022555,2]
[330491790,1719502236528,-150.0,0.00022555,2]
[330491791,1719502236670,-300.0,0.00022555,2]
[330491792,1719502236682,-2421.30702453,0.00022593,2]
[330491793,1719502236691,-300.0,0.000226,8]
[330491794,1719502236700,-340.0204518,0.00022642,2]
[330491795,1719502236711,-156.65031769,0.00022667,2]
[330491796,1719502236720,-2421.30702453,0.00022692,2]
[330491797,1719502236730,-300.0,0.000227,8]
[330491798,1719502236739,-340.0204518,0.00022766,2]
[330491799,1719502236751,-150.5,0.0002278,30]
[330491800,1719502236761,-150.5,0.0002279,30]
[330491801,1719502236770,-975.04504316,0.0002279,2]
[330491802,1719502236780,-2421.30702453,0.00022791,2]
[330491803,1719502236790,-2132.7588,0.000228,2]
[330491804,1719502236799,-150.5,0.000228,30]
[330491805,1719502236809,-2000.0,0.000228,2]
[330491806,1719502236818,-2000.0,0.000228,2]
[330491807,1719502236831,-2000.0,0.000228,2]
[330491808,1719502236840,-2000.0,0.000228,2]
[330491809,1719502236850,-2000.0,0.000228,2]
[330491810,1719502236859,-2000.0,0.000228,2]
[330491811,1719502236869,-700.0,0.000228,8]
[330491812,1719502236879,-500.0,0.00022805,2]